fUSD/lending_fUSD_20250322
["ID","MTS","AMOUNT","RATE_DAILY","PERIOD"]
[356530539,1742625034736,-500.0,0.00046575,120]
[356530540,1742625034746,-500.0,0.00046575,120]
[356530541,1742625034755,-717.22,0.00046575,120]
[356530542,1742625034765,-814.5,0.00046575,120]
[356530543,1742625034775,-591.42315167,0.00046575,120]
[356530544,1742625034784,-715.61,0.00046575,120]
[356530545,1742625034794,-681.24,0.00046575,120]
[356530546,1742625034803,-646.66,0.00046575,120]
[356530547,1742625034813,-500.0,0.00046575,120]
[356530548,1742625034822,-533.19,0.00046575,120]
[356530549,1742625034831,-887.98,0.00046575,120]
[356530550,1742625034840,-500.0,0.00046575,120]
[356530551,1742625034850,-1000.0,0.00046575,120]
[356530552,1742625034859,-770.24,0.00046575,120]
[356530553,1742625034875,-500.0,0.00046575,120]
[356530554,1742625034891,-500.0,0.00046575,120]
[356530555,1742625034904,-500.0,0.00046575,120]
[356530556,1742625034913,-500.0,0.00046575,120]
[356530557,1742625034923,-500.0,0.00046575,120]
[356530558,1742625034932,-500.0,0.00046575,120]
[356530559,1742625034943,-500.0,0.00046575,120]
[356530560,1742625034952,-500.0,0.00046575,120]
[356530561,1742625034961,-500.0,0.00046575,120]
[356530562,1742625034971,-235.02051106,0.00046575,120]
[356530563,1742625034982,-500.0,0.00046575,120]
[356530564,1742625034992,-500.0,0.00046575,120]
[356530565,1742625035001,-500.0,0.00046575,120]
[356530566,1742625035011,-500.0,0.00046575,120]
[356530567,1742625035021,-500.0,0.00046575,120]
[356530568,1742625035030,-500.0,0.00046575,120]
[356530569,1742625035039,-623.76186108,0.00046575,120]
[356530570,1742625035048,-804.64,0.00046575,120]
[356530571,1742625035058,-581.14,0.00046575,120]
[356530572,1742625035067,-597.71,0.00046575,120]
[356530573,1742625035077,-500.0,0.00046575,120]
[356530574,1742625035086,-500.0,0.00046575,120]
[356530575,1742625035095,-500.0,0.00046575,120]
[356530576,1742625035104,-848.32,0.00046575,120]
[356530577,1742625035114,-291.775482,0.00046575,14]
[356530578,1742625035123,-500.0,0.00046575,120]
[356530579,1742625035132,-752.6,0.00046575,120]
[356530580,1742625035142,-500.0,0.00046575,120]
[356530581,1742625035151,-500.0,0.00046575,120]
[356530582,1742625035160,-752.45,0.00046575,120]
[356530583,1742625035169,-1424.76,0.00046575,120]
[356530584,1742625035178,-500.0,0.00046575,120]
[356530585,1742625035190,-684.76,0.00046575,120]
[356530586,1742625035200,-997.21,0.00046575,120]
[356530587,1742625035209,-795.33,0.00046575,120]
[356530588,1742625035219,-1421.72,0.00046575,120]
[356530589,1742625035228,-500.0,0.00046575,120]
[356530590,1742625035237,-500.0,0.00046575,120]
[356530591,1742625035246,-500.0,0.00046575,120]
[356530592,1742625035256,-500.0,0.00046575,120]
[356530593,1742625035265,-500.0,0.00046575,120]
[356530594,1742625035275,-500.0,0.00046575,120]
[356530595,1742625035284,-500.0,0.00046575,120]
[356530596,1742625035294,-500.0,0.00046575,120]
[356530597,1742625035304,-541.38,0.00046575,120]
[356530598,1742625035313,-553.77245764,0.00046575,120]
[356530599,1742625035323,-500.0,0.00046575,120]
[356530600,1742625035332,-500.0,0.00046575,120]
[356530601,1742625035342,-500.0,0.00046575,120]
[356530602,1742625035351,-500.0,0.00046575,120]
[356530603,1742625035360,-500.0,0.00046575,120]
[356530604,1742625035370,-500.0,0.00046575,120]
[356530605,1742625035379,-500.0,0.00046575,120]
[356530606,1742625035389,-500.0,0.00046575,120]
[356530607,1742625035398,-572.8,0.00046575,120]
[356530608,1742625035408,-500.0,0.00046575,120]
[356530609,1742625035418,-500.0,0.00046575,120]
[356530610,1742625035427,-500.0,0.00046575,120]
[356530611,1742625035436,-500.0,0.00046575,120]
[356530612,1742625035446,-1041.8,0.00046575,120]
[356530613,1742625035455,-500.0,0.00046575,120]
[356530614,1742625035464,-527.60594669,0.00046575,120]
[356530615,1742625035473,-500.0,0.00046575,120]
[356530616,1742625035483,-227.37843609,0.00046575,120]
[356530617,1742625035492,-500.0,0.00046575,120]
[356530618,1742625035501,-500.0,0.00046575,120]
[356530619,1742625035512,-585.3040303,0.00046575,120]
[356530620,1742625035521,-500.0,0.00046575,120]
[356530621,1742625035530,-500.0,0.00046575,120]
[356530622,1742625035540,-894.48,0.00046575,120]
[356530623,1742625035549,-500.0,0.00046575,120]
[356530624,1742625035558,-500.0,0.00046575,120]
[356530625,1742625035568,-500.0,0.00046575,120]
[356530626,1742625035576,-500.0,0.00046575,120]
[356530627,1742625035586,-623.93,0.00046575,120]
[356530628,1742625035595,-500.0,0.00046575,120]
[356530629,1742625035604,-797.36,0.00046575,120]
[356530630,1742625035613,-586.48,0.00046575,120]
[356530631,1742625035623,-500.0,0.00046575,120]
[356530632,1742625035633,-1079.44,0.00046575,120]
[356530633,1742625035642,-500.0,0.00046575,20]
[356530634,1742625035651,-500.0,0.00046575,120]
[356530635,1742625035660,-2095.3,0.00046575,120]
[356530636,1742625035670,-936.35,0.00046575,120]
[356530637,1742625035679,-500.0,0.00046575,120]
[356530638,1742625035688,-500.0,0.00046575,120]
[356530639,1742625035697,-647.35,0.00046575,120]
[356530640,1742625035707,-829.78,0.00046575,120]
[356530641,1742625035715,-500.0,0.00046575,120]
[356530642,1742625035725,-500.0,0.00046575,120]
[356530643,1742625035734,-500.0,0.00046575,120]
[356530644,1742625035743,-500.0,0.00046575,120]
[356530645,1742625035753,-824.78,0.00046575,120]
[356530646,1742625035763,-500.0,0.00046575,120]
[356530647,1742625035772,-1419.83,0.00046575,120]
[356530648,1742625035782,-500.0,0.00046575,120]
[356530649,1742625035791,-1045.71,0.00046575,120]
[356530650,1742625035800,-500.0,0.00046575,120]
[356530651,1742625035809,-500.0,0.00046575,120]
[356530652,1742625035819,-500.0,0.00046575,120]
[356530653,1742625035828,-500.0,0.00046575,120]
[356530654,1742625035837,-874.56,0.00046575,120]
[356530655,1742625035847,-500.0,0.00046575,120]
[356530656,1742625035856,-500.0,0.00046575,120]
[356530657,1742625035865,-500.0,0.00046575,120]
[356530658,1742625035874,-500.0,0.00046575,120]
[356530659,1742625035884,-500.0,0.00046575,120]
[356530660,1742625035894,-955.49,0.00046575,120]
[356530661,1742625035908,-500.0,0.00046575,120]
[356530662,1742625035917,-500.0,0.00046575,120]
[356530663,1742625035926,-500.0,0.00046575,120]
[356530664,1742625035935,-500.0,0.00046575,120]
[356530665,1742625035945,-738.05,0.00046575,120]
[356530666,1742625035955,-1500.0,0.00046575,120]
[356530667,1742625035966,-500.0,0.00046575,120]
[356530668,1742625035976,-670.78,0.00046575,120]
[356530669,1742625035986,-500.0,0.00046575,120]
[356530670,1742625035996,-618.22,0.00046575,120]
[356530671,1742625036007,-500.0,0.00046575,120]
[356530672,1742625036016,-500.0,0.00046575,120]
[356530673,1742625036026,-500.0,0.00046575,120]
[356530674,1742625036036,-500.0,0.00046575,120]
[356530675,1742625036046,-512.22856093,0.00046575,120]
[356530676,1742625036056,-531.95,0.00046575,120]
[356530677,1742625036066,-500.0,0.00046575,120]
[356530678,1742625036076,-3647.27,0.00046575,120]
[356530679,1742625036088,-678.16,0.00046575,120]
[356530680,1742625036098,-500.0,0.00046575,120]
[356530681,1742625036108,-500.0,0.00046575,120]
[356530682,1742625036117,-866.08,0.00046575,120]
[356530683,1742625036127,-500.0,0.00046575,120]
[356530684,1742625036136,-500.0,0.00046575,30]
[356530685,1742625036146,-513.43151325,0.00046575,120]
[356530686,1742625036156,-564.36511779,0.00046575,120]
[356530688,1742625036166,-576.83,0.00046575,120]
[356530689,1742625036175,-500.0,0.00046575,120]
[356530690,1742625036185,-500.0,0.00046575,120]
[356530691,1742625036196,-500.0,0.00046575,120]
[356530692,1742625036205,-500.0,0.00046575,120]
[356530693,1742625036214,-719.18,0.00046575,120]
[356530694,1742625036223,-439.45932412,0.00046575,120]
[356530695,1742625036233,-500.0,0.00046575,120]
[356530696,1742625036243,-2152.57,0.00046575,120]
[356530697,1742625036253,-500.0,0.00046575,120]
[356530698,1742625036264,-500.0,0.00046575,120]
[356530699,1742625036273,-500.0,0.00046575,120]
[356530700,1742625036283,-500.0,0.00046575,120]
[356530701,1742625036293,-500.0,0.00046575,120]
[356530702,1742625036303,-508.6,0.00046575,120]
[356530703,1742625036314,-500.0,0.00046575,120]
[356530704,1742625036326,-1519.42,0.00046575,7]
[356530705,1742625036336,-500.0,0.00046575,120]
[356530706,1742625036346,-500.0,0.00046575,120]
[356530707,1742625036355,-1291.18,0.00046575,120]
[356530708,1742625036365,-526.75030233,0.00046575,120]
[356530709,1742625036375,-1375.49,0.00046575,120]
[356530710,1742625036385,-500.0,0.00046575,120]
[356530711,1742625036394,-517.36569792,0.00046575,120]
[356530712,1742625036404,-500.0,0.00046575,120]
[356530713,1742625036413,-500.0,0.00046575,120]
[356530714,1742625036423,-915.07,0.00046575,120]
[356530715,1742625036432,-500.0,0.00046575,120]
[356530716,1742625036441,-500.0,0.00046575,120]
[356530717,1742625036450,-500.0,0.00046575,120]
[356530718,1742625036459,-500.0,0.00046575,120]
[356530719,1742625036468,-966.17,0.00046575,120]
[356530720,1742625036477,-500.0,0.00046575,120]
[356530721,1742625036486,-500.0,0.00046575,120]
[356530722,1742625036496,-567.92,0.00046575,120]
[356530723,1742625036505,-884.21,0.00046575,120]
[356530724,1742625036515,-500.0,0.00046575,120]
[356530725,1742625036524,-500.0,0.00046575,120]
[356530726,1742625036534,-500.0,0.00046575,30]
[356530727,1742625036543,-500.0,0.00046575,120]
[356530728,1742625036552,-930.15,0.00046575,120]
[356530729,1742625036562,-500.0,0.00046575,120]
[356530730,1742625036571,-500.0,0.00046575,120]
[356530731,1742625036581,-2735.53,0.00046575,120]
[356530732,1742625036590,-500.0,0.00046575,120]
[356530733,1742625036600,-500.0,0.00046575,120]
[356530734,1742625036609,-813.77,0.00046575,120]
[356530735,1742625036619,-500.0,0.00046575,120]
[356530736,1742625036629,-740.29,0.00046575,120]
[356530737,1742625036639,-983.24,0.00046575,120]
[356530738,1742625036648,-1162.76,0.00046575,120]
[356530739,1742625036658,-500.0,0.00046575,120]
[356530740,1742625036668,-450.98639449,0.00046575,120]
[356530741,1742625036678,-500.0,0.00046575,120]
[356530742,1742625036688,-500.0,0.00046575,120]
[356530743,1742625036697,-500.0,0.00046575,120]
[356530744,1742625036707,-586.31,0.00046575,120]
[356530745,1742625036717,-500.0,0.00046575,120]
[356530746,1742625036728,-500.0,0.00046575,120]
[356530747,1742625036806,-526.16126773,0.00046575,120]
[356530748,1742625036816,-1210.77,0.00046575,120]
[356530749,1742625036825,-500.0,0.00046575,120]
[356530750,1742625036835,-500.0,0.00046575,120]
[356530751,1742625036845,-500.0,0.00046575,120]
[356530752,1742625036855,-500.0,0.00046575,120]
[356530753,1742625036865,-500.0,0.00046575,120]
[356530754,1742625036875,-500.0,0.00046575,120]
[356530755,1742625036886,-569.9930566,0.00046575,120]
[356530756,1742625036899,-500.0,0.00046575,120]
[356530757,1742625036909,-500.0,0.00046575,120]
[356530758,1742625036920,-1122.27,0.00046575,120]
[356530759,1742625036929,-1111.19,0.00046575,120]
[356530760,1742625036939,-551.82,0.00046575,120]
[356530761,1742625036948,-500.0,0.00046575,120]
[356530762,1742625036958,-500.0,0.00046575,120]
[356530763,1742625036967,-934.55,0.00046575,120]
[356530764,1742625036977,-500.0,0.00046575,120]
[356530765,1742625036986,-506.16469356,0.00046575,120]
[356530766,1742625036995,-672.8,0.00046575,120]
[356530767,1742625037004,-500.0,0.00046575,120]
[356530768,1742625037015,-500.0,0.00046575,120]
[356530769,1742625037025,-500.0,0.00046575,120]
[356530770,1742625037034,-500.0,0.00046575,120]
[356530771,1742625037043,-500.0,0.00046575,120]
[356530772,1742625037053,-500.0,0.00046575,120]
[356530773,1742625037062,-577.49,0.00046575,120]
[356530774,1742625037071,-594.32,0.00046575,120]
[356530775,1742625037080,-702.66,0.00046575,120]
[356530776,1742625037090,-625.41,0.00046575,120]
[356530777,1742625037099,-563.33,0.00046575,120]
[356530778,1742625037108,-500.0,0.00046575,120]
[356530779,1742625037119,-1119.28,0.00046575,120]
[356530780,1742625037128,-151.0,0.00046575,14]
[356530781,1742625037137,-151.0,0.00046575,14]
[356530782,1742625037147,-151.0,0.00046575,14]
[356530783,1742625037156,-151.0,0.00046575,14]
[356530784,1742625037166,-682.2,0.00046575,120]
[356530785,1742625037175,-1372.62,0.00046575,120]
[356530786,1742625037184,-500.0,0.00046575,120]
[356530787,1742625037193,-285.6164,0.00046575,14]
[356530788,1742625037202,-500.0,0.00046575,120]
[356530789,1742625037211,-500.0,0.00046575,120]
[356530790,1742625037222,-841.35,0.00046575,120]
[356530791,1742625037231,-500.0,0.00046575,120]
[356530792,1742625037240,-500.0,0.00046575,120]
[356530793,1742625037250,-630.57,0.00046575,120]
[356530794,1742625037259,-500.0,0.00046575,120]
[356530795,1742625037269,-500.0,0.00046575,120]
[356530796,1742625037278,-825.61,0.00046575,120]
[356530797,1742625037288,-500.0,0.00046575,120]
[356530798,1742625037298,-500.0,0.00046575,120]
[356530799,1742625037307,-722.43,0.00046575,120]
[356530800,1742625037316,-500.0,0.00046575,120]
[356530801,1742625037325,-500.0,0.00046575,120]
[356530802,1742625037335,-500.0,0.00046575,120]
[356530803,1742625037344,-500.0,0.00046575,120]
[356530804,1742625037353,-169.54704,0.00046575,14]
[356530805,1742625037363,-500.0,0.00046575,120]
[356530806,1742625037372,-500.0,0.00046575,120]
[356530807,1742625037382,-158.61466356,0.00046575,120]
[356530808,1742625037391,-296.48080479,0.00046575,120]
[356530809,1742625037401,-1074.98,0.00046575,120]
[356530810,1742625037410,-945.2,0.00046575,120]
[356530811,1742625037419,-500.0,0.00046575,120]
[356530812,1742625037428,-997.61,0.00046575,120]
[356530813,1742625037438,-854.41,0.00046575,120]
[356530814,1742625037448,-500.0,0.00046575,120]
[356530815,1742625037457,-500.0,0.00046575,120]
[356530816,1742625037466,-500.0,0.00046575,120]
[356530817,1742625037476,-507.56069931,0.00046575,120]
[356530818,1742625037486,-500.0,0.00046575,120]
[356530819,1742625037495,-500.0,0.00046575,120]
[356530820,1742625037504,-1359.79,0.00046575,120]
[356530821,1742625037514,-1003.6,0.00046575,120]
[356530822,1742625037524,-386.6297227,0.00046575,120]
[356530823,1742625037534,-500.0,0.00046575,2]
[356530824,1742625037543,-1415.86,0.00046575,120]
[356530825,1742625037552,-500.0,0.00046575,120]
[356530826,1742625037561,-500.0,0.00046575,120]
[356530827,1742625037571,-500.0,0.00046575,120]
[356530828,1742625037580,-500.0,0.00046575,120]
[356530829,1742625037590,-500.0,0.00046575,120]
[356530830,1742625037600,-500.0,0.00046575,120]
[356530831,1742625037610,-500.0,0.00046575,120]
[356530832,1742625037620,-500.0,0.00046575,120]
[356530833,1742625037630,-500.0,0.00046575,120]
[356530834,1742625037640,-500.0,0.00046575,120]
[356530835,1742625037649,-500.0,0.00046575,120]
[356530836,1742625037658,-623.45,0.00046575,120]
[356530837,1742625037667,-500.0,0.00046575,120]
[356530838,1742625037676,-3000.0,0.00046575,120]
[356530839,1742625037686,-592.59,0.00046575,120]
[356530840,1742625037694,-500.0,0.00046575,120]
[356530841,1742625037704,-500.0,0.00046575,120]
[356530842,1742625037714,-500.0,0.00046575,120]
[356530843,1742625037723,-500.0,0.00046575,120]
[356530844,1742625037732,-909.53,0.00046575,120]
[356530845,1742625037741,-519.9484985,0.00046575,120]
[356530846,1742625037751,-500.0,0.00046575,120]
[356530847,1742625037761,-736.16,0.00046575,120]
[356530848,1742625037770,-830.64,0.00046575,120]
[356530849,1742625037779,-968.2,0.00046575,120]
[356530850,1742625037789,-500.0,0.00046575,120]
[356530851,1742625037798,-500.0,0.00046575,60]
[356530852,1742625037808,-1884.74,0.00046575,120]
[356530853,1742625037817,-1534.62,0.00046575,120]
[356530854,1742625037827,-983.8,0.00046575,120]
[356530855,1742625037836,-522.49060042,0.00046575,120]
[356530856,1742625037846,-500.0,0.00046575,120]
[356530857,1742625037855,-605.63,0.00046575,120]
[356530858,1742625037864,-1284.05,0.00046575,120]
[356530859,1742625037874,-500.0,0.00046575,120]
[356530860,1742625037883,-672.75,0.00046575,120]
[356530861,1742625037892,-500.0,0.00046575,120]
[356530862,1742625037906,-899.54,0.00046575,120]
[356530863,1742625037915,-500.0,0.00046575,120]
[356530864,1742625037924,-500.0,0.00046575,120]
[356530865,1742625037934,-850.18,0.00046575,120]
[356530866,1742625037943,-591.14,0.00046575,120]
[356530867,1742625037953,-1434.06,0.00046575,120]
[356530868,1742625037963,-500.0,0.00046575,120]
[356530869,1742625037972,-519.40527875,0.00046575,120]
[356530870,1742625037983,-710.81,0.00046575,120]
[356530871,1742625037994,-627.58,0.00046575,120]
[356530872,1742625038004,-500.0,0.00046575,120]
[356530873,1742625038016,-500.0,0.00046575,120]
[356530874,1742625038026,-500.0,0.00046575,120]
[356530875,1742625038036,-844.89,0.00046575,2]
[356530876,1742625038046,-500.0,0.00046575,120]
[356530877,1742625038055,-500.0,0.00046575,120]
[356530878,1742625038065,-500.0,0.00046575,120]
[356530879,1742625038076,-1522.63,0.00046575,120]
[356530880,1742625038085,-628.93,0.00046575,120]
[356530881,1742625038095,-1194.35,0.00046575,120]
[356530882,1742625038104,-588.32,0.00046575,120]
[356530883,1742625038114,-162.75756762,0.00046575,120]
[356530884,1742625038123,-500.0,0.00046575,120]
[356530885,1742625038133,-993.23,0.00046575,120]
[356530886,1742625038143,-500.0,0.00046575,120]
[356530888,1742625038152,-889.84,0.00046575,120]
[356530890,1742625038162,-937.52,0.00046575,120]
[356530892,1742625038171,-528.72,0.00046575,120]
[356530894,1742625038181,-867.2,0.00046575,120]
[356530895,1742625038190,-500.0,0.00046575,120]
[356530896,1742625038199,-501.15819748,0.00046575,120]
[356530897,1742625038208,-987.94,0.00046575,120]
[356530898,1742625038218,-500.0,0.00046575,120]
[356530899,1742625038227,-500.0,0.00046575,120]
[356530900,1742625038236,-1156.99,0.00046575,120]
[356530901,1742625038245,-500.0,0.00046575,120]
[356530902,1742625038255,-500.0,0.00046575,120]
[356530904,1742625038267,-500.0,0.00046575,120]
[356530907,1742625038276,-500.0,0.00046575,120]
[356530909,1742625038286,-955.38,0.00046575,120]
[356530910,1742625038295,-1385.91,0.00046575,120]
[356530911,1742625038305,-656.05,0.00046575,120]
[356530912,1742625038314,-500.0,0.00046575,120]
[356530913,1742625038323,-2570.92,0.00046575,120]
[356530914,1742625038333,-500.0,0.00046575,120]
[356530915,1742625038342,-693.8,0.00046575,120]
[356530916,1742625038351,-1927.49,0.00046575,120]
[356530917,1742625038360,-500.0,0.00046575,120]
[356530918,1742625038369,-840.68,0.00046575,120]
[356530919,1742625038378,-505.92,0.00046575,120]
[356530920,1742625038387,-151.0,0.00046575,14]
[356530921,1742625038396,-1078.64,0.00046575,120]
[356530922,1742625038406,-500.0,0.00046575,120]
[356530923,1742625038415,-169.344069,0.00046575,14]
[356530924,1742625038424,-500.0,0.00046575,120]
[356530925,1742625038433,-500.0,0.00046575,120]
[356530926,1742625038442,-1863.27,0.00046575,120]
[356530927,1742625038451,-4895.58,0.00046575,120]
[356530928,1742625038460,-1008.22,0.00046575,120]
[356530929,1742625038468,-500.0,0.00046575,120]
[356530930,1742625038477,-500.0,0.00046575,120]
[356530931,1742625038486,-1949.87,0.00046575,120]
[356530932,1742625038496,-2091.36,0.00046575,120]
[356530933,1742625038505,-918.44,0.00046575,120]
[356530934,1742625038516,-500.0,0.00046575,120]
[356530935,1742625038526,-1916.99,0.00046575,120]
[356530936,1742625038536,-500.0,0.00046575,120]
[356530937,1742625038545,-500.0,0.00046575,30]
[356530938,1742625038554,-702.03,0.00046575,120]
[356530939,1742625038563,-1241.1,0.00046575,120]
[356530940,1742625038572,-500.0,0.00046575,120]
[356530941,1742625038582,-1000.0,0.00046575,120]
[356530942,1742625038592,-500.0,0.00046575,120]
[356530943,1742625038601,-500.0,0.00046575,120]
[356530944,1742625038610,-678.03,0.00046575,120]
[356530945,1742625038619,-685.27,0.00046575,120]
[356530946,1742625038628,-500.0,0.00046575,120]
[356530947,1742625038637,-514.97,0.00046575,120]
[356530948,1742625038646,-500.0,0.00046575,120]
[356530949,1742625038655,-1359.01,0.00046575,120]
[356530950,1742625038665,-1277.49,0.00046575,120]
[356530951,1742625038674,-1141.66,0.00046575,120]
[356530953,1742625038683,-932.52,0.00046575,120]
[356530955,1742625038692,-500.0,0.00046575,120]
[356530956,1742625038701,-500.0,0.00046575,120]
[356530958,1742625038710,-895.4,0.00046575,120]
[356530960,1742625038719,-500.0,0.00046575,120]
[356530962,1742625038728,-2012.96,0.00046575,120]
[356530964,1742625038737,-500.0,0.00046575,120]
[356530966,1742625038746,-500.0,0.00046575,120]
[356530968,1742625038755,-500.0,0.00046575,120]
[356530970,1742625038766,-1069.2,0.00046575,120]
[356530971,1742625038775,-500.0,0.00046575,120]
[356530973,1742625038784,-1467.23,0.00046575,120]
[356530974,1742625038793,-1646.18,0.00046575,120]
[356530975,1742625038802,-500.0,0.00046575,120]
[356530976,1742625038811,-951.02,0.00046575,120]
[356530977,1742625038820,-500.0,0.00046575,120]
[356530978,1742625038828,-946.04,0.00046575,120]
[356530979,1742625038838,-500.0,0.00046575,120]
[356530980,1742625038847,-500.0,0.00046575,120]
[356530981,1742625038856,-774.46,0.00046575,120]
[356530982,1742625038865,-500.0,0.00046575,120]
[356530983,1742625038875,-500.0,0.00046575,120]
[356530984,1742625038884,-557.77,0.00046575,120]
[356530985,1742625038893,-712.81,0.00046575,120]
[356530986,1742625038906,-500.0,0.00046575,120]
[356530987,1742625038915,-500.0,0.00046575,120]
[356530988,1742625038924,-988.5,0.00046575,120]
[356530989,1742625038934,-539.07,0.00046575,120]
[356530990,1742625038943,-416.02587884,0.00046575,120]
[356530991,1742625038952,-2160.0,0.00046575,120]
[356530992,1742625038961,-500.0,0.00046575,120]
[356530993,1742625038971,-541.49,0.00046575,120]
[356530994,1742625038982,-674.98,0.00046575,120]
[356530995,1742625038991,-887.38,0.00046575,120]
[356530996,1742625039000,-534.07846899,0.00046575,120]
[356530997,1742625039010,-500.0,0.00046575,120]
[356530998,1742625039019,-688.27,0.00046575,120]
[356530999,1742625039029,-1734.86,0.00046575,120]
[356531000,1742625039039,-500.0,0.00046575,120]
[356531001,1742625039049,-500.0,0.00046575,120]
[356531002,1742625039059,-500.0,0.00046575,120]
[356531003,1742625039068,-500.0,0.00046575,120]
[356531004,1742625039077,-500.0,0.00046575,120]
[356531005,1742625039086,-378.33829605,0.00046575,120]
[356531006,1742625039096,-801.47,0.00046575,120]
[356531007,1742625039105,-500.0,0.00046575,120]
[356531008,1742625039114,-936.91,0.00046575,120]
[356531009,1742625039123,-539.34,0.00046575,120]
[356531010,1742625039133,-1175.26,0.00046575,120]
[356531011,1742625039143,-500.0,0.00046575,120]
[356531012,1742625039152,-5783.35,0.00046575,2]
[356531013,1742625039161,-1399.02,0.00046575,120]
[356531014,1742625039170,-27707.18,0.00046575,120]
[356531015,1742625039179,-500.0,0.00046575,120]
[356531016,1742625039188,-500.0,0.00046575,120]
[356531017,1742625039197,-1198.48,0.00046575,120]
[356531018,1742625039207,-500.0,0.00046575,120]
[356531019,1742625039216,-607.72,0.00046575,120]
[356531020,1742625039225,-500.0,0.00046575,120]
[356531021,1742625039234,-500.0,0.00046575,120]
[356531022,1742625039243,-500.0,0.00046575,120]
[356531023,1742625039252,-636.51,0.00046575,120]
[356531024,1742625039262,-142.91105996,0.00046575,120]
[356531025,1742625039753,-357.08894004,0.00046575,120]
[356531026,1742625039764,-553.73,0.00046575,120]
[356531027,1742625039774,-500.0,0.00046575,120]
[356531028,1742625039783,-500.0,0.00046575,120]
[356531029,1742625039794,-523.84303129,0.00046575,120]
[356531030,1742625039806,-67.41696871,0.00046575,120]
[356531031,1742625039816,-500.0,0.00046575,120]
[356531032,1742625039826,-216.23745238,0.00046575,120]
[356531033,1742625039839,-283.76254762,0.00046575,120]
[356531034,1742625039850,-500.0,0.00046575,120]
[356531035,1742625039859,-500.0,0.00046575,120]
[356531036,1742625039869,-500.0,0.00046575,120]
[356531037,1742625039879,-216.35675238,0.00046575,120]
[356531040,1742625040690,-3939.0,0.00046045,2]
[356531041,1742625040700,-283.64324762,0.00046575,120]
[356531042,1742625040710,-500.0,0.00046575,120]
[356531043,1742625040720,-1150.97,0.00046575,120]
[356531044,1742625040729,-660.63,0.00046575,120]
[356531045,1742625040739,-500.0,0.00046575,120]
[356531046,1742625040749,-1176.84,0.00046575,120]
[356531047,1742625040758,-872.98,0.00046575,120]
[356531048,1742625040770,-500.0,0.00046575,120]
[356531049,1742625040779,-330.77623383,0.00046575,120]
[356531050,1742625040792,-169.22376617,0.00046575,120]
[356531051,1742625040801,-232.39244883,0.00046575,120]
[356531052,1742625040815,-267.60755117,0.00046575,120]
[356531053,1742625040825,-2132.89,0.00046575,120]
[356531054,1742625040835,-500.0,0.00046575,120]
[356531055,1742625040845,-189.01036195,0.00046575,120]
[356531056,1742625040855,-870.31,0.00046575,120]
[356531057,1742625040865,-500.0,0.00046575,120]
[356531058,1742625040875,-500.0,0.00046575,120]
[356531059,1742625040886,-500.0,0.00046575,120]